bitfinex/quotes_SOLUSD_20250724
["timestamp","ask_amount","ask_price","bid_price","bid_amount"]
[1753390679859,22.10455722,189.05,189.03,5.29309549]
[1753390680234,0.03,189.05,189.04,6.01309549]
[1753390682262,0.03,189.05,189.02,7.1686]
[1753390682466,0.03,189.05,189.04,5.29309549]
[1753390682966,0.03,189.05,189.04,6.01309549]
[1753390684070,0.03,189.05,189.04,11.58730436]
[1753390684968,0.03,189.05,189.04,48.82730436]
[1753390685759,0.03,189.05,189.04,43.25309549]
[1753390686784,0.03,189.05,189.04,48.54298122]
[1753390688396,0.03,189.05,189.04,48.82730436]
[1753390695005,0.03,189.05,189.04,0.72]
[1753390695307,0.03,189.05,189.04,43.17309549]
[1753390698509,0.03,189.09,189.04,48.46298122]
[1753390698705,0.03,189.09,189.08,5.29309549]
[1753390698877,0.03,189.09,189.08,37.14]
[1753390699077,0.03,189.09,189.08,42.43309549]
[1753390701094,17.53468397,189.09,189.03,7.1403]
[1753390701290,16.81468397,189.09,189.06,5.29309549]
[1753390701617,0.72,189.08,189.07,37.26]
[1753390701908,18.03364457,189.08,189.07,37.26]
[1753390702581,17.50468397,189.08,189.07,37.26]
[1753390702795,16.78468397,189.07,189.01,0.06]
[1753390702975,5.28988573,189.04,189.02,37.26]
[1753390703371,0.72,189.03,189.02,37.26]
[1753390704001,6.01016558,189.03,189.02,37.26]
[1753390711005,23.32381015,189.03,189.02,37.26]
[1753390716194,23.32381015,189.03,189.01,0.06]
[1753390716396,5.97044545,189.02,189.01,0.06]
[1753390718009,5.8192602,189.03,189.01,0.06]
[1753390718194,16.78468397,189.02,189.01,5.35309549]
[1753390718513,22.07512942,189.02,189.01,0.06]
[1753390720313,5.8191853,189.03,189.01,6.07309549]
[1753390720490,5.8191853,189.03,189.02,37.18]
[1753390723303,6.4991853,189.03,189.02,37.18]
[1753390727701,5.8191853,189.03,189.02,37.18]
[1753390729003,6.4991853,189.03,189.02,37.18]
[1753390730614,5.8191853,189.03,189.02,37.18]
[1753390730920,22.07484955,189.03,189.02,37.9]
[1753390731124,22.07484955,189.03,189.02,37.18]
[1753390731805,22.07484955,189.03,189.02,42.47309549]
[1753390732121,22.07484955,189.03,189.02,37.18]
[1753390733598,22.75484955,189.03,189.02,37.18]
[1753390735215,22.75484955,189.03,189.01,0.06]
[1753390735403,1.2089606,189.02,189.01,0.06]
[1753390735604,6.49940605,189.02,189.01,0.06]
[1753390737209,23.28409002,189.02,189.01,0.06]
[1753390737731,28.86150865,189.02,189.0,2.0]
[1753390737908,22.77777946,189.01,189.0,2.0]
[1753390738525,23.0621026,189.01,189.0,2.0]
[1753390741432,0.5289606,189.01,189.0,2.0]
[1753390741812,5.81968595,189.01,189.0,2.0]
[1753390742018,6.51968595,189.01,189.0,2.0]
[1753390744028,5.81968595,189.01,189.0,2.0]
[1753390744217,22.60358828,189.04,189.0,7.96309549]
[1753390744421,22.60358828,189.04,189.03,5.29309549]
[1753390744939,16.78468397,189.03,189.02,42.49309549]
[1753390745109,17.31364457,189.04,189.02,43.16309549]
[1753390745315,31.31966627,189.05,189.02,37.2]
[1753390745316,16.78468397,189.03,189.02,37.2]
[1753390745514,16.78468397,189.03,189.02,42.49309549]
[1753390745730,26.03,189.05,189.02,42.49309549]
[1753390745937,42.81468397,189.05,189.04,5.29309549]
[1753390746739,48.63325049,189.05,189.04,5.29309549]
[1753390746942,48.10428989,189.05,189.04,5.29309549]
[1753390749240,42.81468397,189.05,189.04,5.96309549]
[1753390749650,16.81468397,189.05,189.04,0.67]
[1753390749833,22.10428989,189.05,189.04,5.96309549]
[1753390750628,22.10428989,189.05,189.04,5.29309549]
[1753390753924,16.81468397,189.05,189.04,5.96309549]
[1753390754225,0.03,189.05,189.04,5.96309549]
[1753390754423,5.31960592,189.05,189.02,37.2]
[1753390754639,6.01960592,189.05,189.03,5.29309549]
[1753390755037,6.01960592,189.05,189.02,42.49309549]
[1753390755240,5.31960592,189.05,189.02,42.49309549]
[1753390755440,5.31960592,189.05,189.02,43.16309549]
[1753390755744,5.31960592,189.05,189.03,5.96309549]
[1753390756043,5.31960592,189.05,189.04,0.67]
[1753390757133,16.81468397,189.05,189.04,0.67]
[1753390757532,16.81468397,189.05,189.03,5.29309549]
[1753390757741,16.81468397,189.05,189.03,5.96309549]
[1753390758141,16.81468397,189.05,189.04,5.29309549]
[1753390758847,16.81468397,189.05,189.04,5.96309549]
[1753390759624,5.28932613,189.06,189.05,26.19731684]
[1753390760554,5.28904638,189.07,189.05,26.19731684]
[1753390760755,0.5289606,189.06,189.05,26.19731684]
[1753390762830,0.5289606,189.06,189.05,32.16041233]
[1753390763051,17.31364457,189.07,189.05,32.16041233]
[1753390763243,17.31364457,189.07,189.06,5.96309549]
[1753390763956,17.31364457,189.07,189.06,5.29309549]
[1753390764378,0.5289606,189.07,189.06,5.29309549]
[1753390764542,17.31364457,189.08,189.06,5.96309549]
[1753390764869,17.31364457,189.08,189.07,5.29309549]
[1753390765440,22.60241122,189.08,189.07,5.96309549]
[1753390765742,26.03,189.09,189.07,5.96309549]
[1753390766060,43.34364457,189.09,189.08,5.29309549]
[1753390766262,48.63213153,189.09,189.08,5.96309549]
[1753390766446,48.63213153,189.09,189.08,43.08309549]
[1753390768252,48.63213153,189.09,189.08,42.41309549]
[1753390769947,49.34213153,189.09,189.08,42.41309549]
[1753390770144,48.63213153,189.09,189.08,42.41309549]
[1753390771162,48.63213153,189.09,189.08,5.29309549]
[1753390771363,48.63213153,189.09,189.08,42.41309549]
[1753390771666,49.34213153,189.09,189.08,37.12]
[1753390772253,16.78468397,189.08,189.05,26.19731684]
[1753390772453,54.63522702,189.09,189.05,26.19731684]
[1753390772454,16.78468397,189.06,189.05,26.19731684]
[1753390772685,17.49468397,189.06,189.05,26.19731684]
[1753390772966,16.78468397,189.06,189.05,26.19731684]
[1753390773342,18.02364457,189.08,189.05,26.19731684]
[1753390773866,16.78468397,189.06,189.05,26.19731684]
[1753390774045,17.31364457,189.06,189.05,26.19731684]
[1753390774339,17.31364457,189.06,189.05,31.49041233]
[1753390776273,22.6029707,189.06,189.05,31.49041233]
[1753390776461,22.0740101,189.06,189.05,31.49041233]
[1753390777176,22.0740101,189.06,189.01,0.06]
[1753390777380,22.3621026,189.02,189.01,0.06]
[1753390777558,60.0310632,189.02,189.01,0.06]
[1753390777881,60.7410632,189.02,189.01,0.06]
[1753390778368,22.60409002,189.02,189.01,0.06]
[1753390778574,23.31409002,189.02,189.01,0.06]
[1753390781979,5.32309549,189.09,189.01,43.18309549]
[1753390781980,0.5289606,189.05,189.01,43.18309549]
[1753390782219,26.5289606,189.05,189.04,5.29309549]
[1753390782556,26.5289606,189.05,189.04,5.98309549]
[1753390782752,0.5289606,189.07,189.04,0.69]
[1753390782970,0.5289606,189.07,189.05,5.29309549]
[1753390783365,26.0,189.06,189.05,5.29309549]
[1753390785663,5.28918229,189.07,189.05,5.98309549]
[1753390785868,26.0,189.07,189.06,5.98309549]
[1753390786668,26.0,189.07,189.06,5.29309549]
[1753390787474,31.28904638,189.07,189.06,5.29309549]
[1753390788361,31.28904638,189.07,189.04,37.87]
[1753390788586,31.28904638,189.07,189.05,0.69]
[1753390788881,31.28904638,189.07,189.05,5.98309549]
[1753390789085,31.99904638,189.07,189.04,0.06]
[1753390789260,1.2389606,189.06,189.05,37.14]
[1753390789668,0.5289606,189.06,189.05,37.14]
[1753390790267,5.81828673,189.06,189.05,37.14]
[1753390792510,16.78468397,189.05,189.04,0.06]
[1753390792681,17.49468397,189.05,189.04,0.06]
[1753390793699,22.07428989,189.05,189.04,0.06]
[1753390793907,31.81820649,189.07,189.04,6.04309549]
[1753390794197,31.81820649,189.07,189.05,43.16309549]
[1753390794370,31.81820649,189.07,189.05,42.47309549]
[1753390794568,32.52820649,189.07,189.05,37.18]
[1753390794771,31.81820649,189.07,189.05,42.47309549]
[1753390795091,31.28924589,189.07,189.05,43.16309549]
[1753390796377,31.28924589,189.07,189.05,37.18]
[1753390796688,31.28924589,189.07,189.05,42.47309549]
[1753390797286,31.28924589,189.07,189.05,37.87]
[1753390797481,31.28924589,189.07,189.05,42.47309549]
[1753390798892,31.28924589,189.07,189.06,6.01309549]
[1753390799496,31.28924589,189.07,189.06,5.29309549]
[1753390799992,31.28924589,189.07,189.05,42.47309549]
[1753390801594,0.5289606,189.08,189.06,6.01309549]
[1753390801794,26.0,189.08,189.07,42.45309549]
[1753390802003,26.0,189.08,189.07,43.17309549]
[1753390802503,43.44468397,189.08,189.07,37.16]
[1753390802875,42.78468397,189.08,189.07,37.16]
[1753390803595,48.07345062,189.08,189.06,5.29309549]
[1753390803786,17.97364457,189.07,189.04,37.24]
[1753390803979,0.66,189.06,189.04,37.24]
[1753390804181,0.5289606,189.05,189.04,37.24]
[1753390804715,0.5289606,189.06,189.04,42.53309549]
[1753390804892,0.5289606,189.06,189.04,43.25309549]
[1753390805297,16.78468397,189.02,189.01,0.06]
[1753390805473,17.31364457,189.02,189.01,0.06]
[1753390805679,23.26409002,189.02,189.01,0.06]
[1753390806904,28.55718551,189.02,189.01,0.06]
[1753390808384,66.02150865,189.02,189.0,2.0]
[1753390808702,49.0221026,189.01,189.0,1e-08]
[1753390808899,23.0221026,189.01,189.0,1e-08]
[1753390810496,177.31282795,189.01,189.0,1e-08]
[1753390811301,172.01973246,189.01,189.0,1e-08]
[1753390811601,171.73540932,189.01,189.0,1e-08]
[1753390813910,171.07540932,189.01,189.0,1e-08]
[1753390814405,171.73540932,189.01,189.0,1e-08]
[1753390816813,171.07540932,189.01,189.0,1e-08]
[1753390819202,197.07540932,189.01,189.0,1e-08]
[1753390821514,165.78468397,189.01,189.0,6.0130955]
[1753390821824,149.0,189.01,189.0,6.0130955]
[1753390827230,5.29049378,189.02,189.0,6.0130955]
[1753390827408,22.60413835,189.02,189.01,6.01309549]
[1753390828193,5.81945438,189.02,189.01,6.01309549]
[1753390828416,0.03,189.05,189.01,12.43959549]
[1753390828592,0.03,189.05,189.04,5.29309549]
[1753390829011,0.03,189.05,189.04,6.01309549]
[1753390836906,0.03,189.05,189.04,11.30298122]
[1753390838105,0.03,189.05,189.04,6.01309549]
[1753390839823,0.03,189.05,189.04,5.29309549]
[1753390840620,0.73,189.05,189.0,0.06000001]
[1753390840807,0.5289606,189.04,189.02,5.29309549]
[1753390841010,26.5289606,189.04,189.03,5.29309549]
[1753390841210,27.2289606,189.04,189.03,5.29309549]
[1753390841425,32.51884633,189.04,189.03,5.29309549]
[1753390841638,26.03,189.05,189.03,6.01309549]
[1753390841934,42.81468397,189.05,189.04,6.01309549]
[1753390842429,43.34364457,189.05,189.04,6.01309549]
[1753390842637,42.81468397,189.05,189.04,6.01309549]
[1753390843336,48.10428989,189.05,189.04,6.01309549]
[1753390843637,0.03,189.05,189.04,6.01309549]
[1753390843932,26.03,189.05,189.04,5.29309549]
[1753390844514,31.31960592,189.05,189.04,5.29309549]
[1753390844743,32.01960592,189.05,189.04,5.29309549]
[1753390845914,26.03,189.05,189.04,5.29309549]
[1753390847040,31.31960592,189.05,189.04,5.29309549]
[1753390848435,32.01960592,189.05,189.04,5.29309549]
[1753390848836,31.31960592,189.05,189.04,5.29309549]
[1753390857749,26.03,189.05,189.04,5.95309549]
[1753390859047,31.31960592,189.05,189.04,5.95309549]
[1753390859342,31.31960592,189.05,189.04,5.29309549]
[1753390860444,31.31960592,189.05,189.0,0.06000001]
[1753390860445,49.30325049,189.05,189.0,0.06000001]
[1753390860628,16.78468397,189.03,189.0,0.06000001]
[1753390860832,0.5289606,189.02,189.0,0.06000001]
[1753390861130,0.68,189.01,189.0,0.06000001]
[1753390861670,0.5289606,189.02,189.0,5.3530955]
[1753390861818,26.03,189.05,189.01,5.95309549]
[1753390862018,26.03,189.05,189.04,5.29309549]
[1753390864244,26.03,189.05,189.04,5.95309549]
[1753390864626,26.03,189.05,189.04,5.29309549]
[1753390865855,31.31960592,189.05,189.04,5.29309549]
[1753390867924,48.78428989,189.05,189.04,5.29309549]
[1753390873653,48.78428989,189.05,189.03,5.29309549]
[1753390873953,5.81884633,189.04,189.03,5.29309549]
[1753390875441,5.28988573,189.04,189.03,5.29309549]
[1753390875636,26.03,189.05,189.03,5.95309549]
[1753390875848,31.99962703,189.05,189.04,5.29309549]
[1753390876764,48.784311,189.05,189.0,0.06000001]
[1753390876960,1.2089606,189.04,189.02,5.29309549]
[1753390877332,6.49884633,189.04,189.03,5.29309549]
[1753390877527,6.49884633,189.04,189.0,0.72000001]
[1753390877742,6.49884633,189.04,189.03,5.29309549]
[1753390879154,5.28988573,189.04,189.03,5.29309549]
[1753390880452,5.28988573,189.04,189.02,0.66]
[1753390880749,5.28988573,189.04,189.0,5.3530955]
[1753390880750,5.28988573,189.04,189.03,5.29309549]
[1753390880957,5.96988573,189.04,189.03,5.29309549]
[1753390882963,42.78468397,189.01,189.0,1e-08]
[1753390883134,42.78468397,189.01,188.98,0.06]
[1753390883135,16.78468397,189.0,188.98,0.06]
[1753390883334,149.0,189.03,188.98,0.06]
[1753390883335,59.72674006,188.99,188.98,0.06]
[1753390883764,60.40674006,188.99,188.98,0.06]
[1753390884961,60.40492982,188.99,188.98,0.06]
[1753390885458,86.40492982,188.99,188.98,0.06]
[1753390885663,49.28492982,188.99,188.98,0.06]
[1753390887282,48.60492982,188.99,188.98,0.06]
[1753390887461,49.27492982,188.99,188.98,0.06]
[1753390888539,28.56802531,188.99,188.98,0.06]
[1753390889437,23.27492982,188.99,188.98,0.06]
[1753390890547,60.39492982,188.99,188.98,0.06]
[1753390892758,65.68802531,188.99,188.98,0.06]
[1753390894070,65.97234845,188.99,188.98,0.06]
[1753390894276,42.78468397,188.96,188.95,0.06]
[1753390894570,85.72674006,188.96,188.95,0.06]
[1753390894802,91.68886537,188.96,188.95,0.06]
[1753390899563,42.78468397,188.93,188.9,0.2]
[1753390899760,85.72674006,188.93,188.9,0.2]
[1753390899964,86.39674006,188.93,188.9,0.2]
[1753390900872,91.6897057,188.93,188.9,0.2]
[1753390901178,94.45067916,188.93,188.9,0.2]
[1753390903883,0.28432314,188.9,188.89,1e-08]
[1753390904185,86.0110632,188.9,188.89,1e-08]
[1753390904366,86.6810632,188.9,188.89,1e-08]
[1753390905172,17.06900711,188.89,188.88,1e-08]
[1753390905388,43.06900711,188.86,188.77,6.5569]
[1753390905682,43.06900711,188.86,188.78,5.96309549]
[1753390905683,22.07777946,188.84,188.78,5.96309549]
[1753390905853,37.6489606,188.83,188.78,5.96309549]
[1753390906056,38.3189606,188.83,188.79,0.67]
[1753390906472,38.3189606,188.83,188.79,5.96309549]
[1753390906682,38.3189606,188.83,188.79,5.29309549]
[1753390906888,38.3189606,188.83,188.8,0.67]
[1753390907265,16.78468397,188.81,188.79,5.29309549]
[1753390907465,17.31364457,188.81,188.79,5.29309549]
[1753390907664,17.31364457,188.81,188.79,5.96309549]
[1753390907873,17.31364457,188.81,188.8,0.67]
[1753390908066,17.31364457,188.81,188.8,5.96309549]
[1753390908964,17.31364457,188.81,188.8,0.67]
[1753390909274,22.60997421,188.81,188.8,0.67]
[1753390910390,16.78468397,188.77,188.76,0.2]
[1753390910601,59.74674006,188.77,188.76,0.2]
[1753390910886,60.41674006,188.77,188.76,0.2]
[1753390911064,72.14644025,188.77,188.76,0.2]
[1753390911263,77.44389217,188.77,188.76,0.2]
[1753390911663,77.72821531,188.77,188.76,1e-08]
[1753390912085,16.78468397,188.76,188.75,1e-08]
[1753390912288,17.45468397,188.76,188.75,1e-08]
[1753390912591,34.37799922,188.76,188.75,1e-08]
[1753390913198,34.66232236,188.76,188.75,1e-08]
[1753390913371,39.96005493,188.76,188.75,1e-08]
[1753390915317,39.67573179,188.76,188.75,1e-08]
[1753390915599,37.63021976,188.76,188.75,0.67000001]
[1753390916098,59.7126363,188.76,188.75,1e-08]
[1753390916302,60.2415969,188.76,188.75,1e-08]
[1753390917102,60.2415969,188.76,188.75,0.67000001]
[1753390917343,59.7126363,188.76,188.75,0.67000001]
[1753390917679,11.63021976,188.76,188.75,5.9630955]
[1753390920307,11.63021976,188.76,188.75,0.67000001]
[1753390920498,11.63021976,188.76,188.75,5.9630955]
[1753390921832,0.5289606,188.84,188.76,6.38532314]
[1753390922133,43.31364457,188.84,188.83,5.29309549]
[1753390922328,0.03,188.85,188.83,6.00309549]
[1753390922627,0.03,188.85,188.84,6.00309549]
[1753390922826,0.03,188.85,188.8,0.71]
[1753390923028,17.34364457,188.85,188.82,5.29309549]
[1753390923213,17.34364457,188.85,188.83,6.00309549]
[1753390923415,26.0,188.83,188.8,6.00309549]
[1753390923719,26.5289606,188.83,188.8,6.00309549]
[1753390923926,26.5289606,188.83,188.8,5.29309549]
[1753390924130,26.5289606,188.83,188.81,0.71]
[1753390924499,5.29604914,188.82,188.79,7.66609549]
[1753390924733,5.29604914,188.82,188.79,6.95609549]
[1753390924917,5.29604914,188.82,188.8,0.71]
[1753390925810,5.29604914,188.82,188.8,6.00309549]
[1753390927249,26.5289606,188.83,188.81,6.00309549]
[1753390927533,26.0,188.84,188.82,6.00309549]
[1753390927903,26.0,188.84,188.83,0.71]
[1753390929028,31.29553046,188.84,188.81,6.00309549]
[1753390929813,31.29553046,188.84,188.81,5.29309549]
[1753390930013,31.29553046,188.84,188.82,0.71]
[1753390931021,31.29553046,188.84,188.82,6.00309549]
[1753390931228,0.5589606,188.85,188.83,6.00309549]
[1753390931427,0.03,188.85,188.84,6.00309549]
[1753390940347,0.03,188.85,188.84,6.28741863]
[1753390941136,0.03,188.85,188.84,6.00309549]
[1753390946248,0.03,188.85,188.84,5.29309549]
[1753390947024,0.03,188.85,188.84,6.00309549]
[1753390949053,0.7,188.85,188.81,0.69]
[1753390949230,1.2289606,188.85,188.81,5.29309549]
[1753390949432,1.2289606,188.85,188.81,5.98309549]
[1753390949730,1.2289606,188.85,188.82,5.29309549]
[1753390949940,0.03,188.85,188.84,5.29309549]
[1753390950155,0.03,188.85,188.84,5.98309549]
[1753390951562,0.03,188.85,188.84,43.12309549]
[1753390953637,0.03,188.85,188.84,48.41858373]
[1753390953842,0.03,188.85,188.84,43.12309549]
[1753390954045,0.03,188.85,188.84,48.41858373]
[1753390955441,0.03,188.85,188.84,54.73090687]
[1753390956056,9.26468849,188.87,188.84,54.73090687]
[1753390956265,9.26468849,188.87,188.86,5.29309549]
[1753390956440,9.26468849,188.87,188.86,5.98309549]
[1753390957935,0.03,188.88,188.86,13.07634608]
[1753390958239,0.03,188.89,188.88,0.28432314]
[1753390958439,0.03,188.89,188.88,42.71741863]
[1753390958655,0.03,188.89,188.88,43.40741863]
[1753390959050,0.03,188.93,188.88,48.70051412]
[1753390959355,0.03,188.93,188.92,5.29309549]
[1753390959554,0.03,188.99,188.93,0.28432314]
[1753390959733,5.32137286,188.99,188.98,5.29309549]
[1753390959932,0.03,188.99,188.98,5.29309549]
[1753390960950,0.03,188.99,188.98,5.98309549]
[1753390962063,0.03,188.99,188.98,11.27619098]
[1753390962238,0.03,188.99,188.98,5.98309549]
[1753390963039,0.03,188.99,188.98,11.27466073]
[1753390963854,0.03,188.99,188.98,5.98309549]
[1753390966968,0.03,188.99,188.98,5.29309549]
[1753390967174,0.03,188.99,188.98,42.41309549]
[1753390969371,0.03,188.99,188.98,43.10309549]
[1753390969754,0.03,188.99,188.98,42.41309549]
[1753390970464,0.7,188.99,188.98,37.1]
[1753390970672,0.7,188.99,188.98,42.39309549]
[1753390970863,0.03,188.99,188.98,42.39309549]
[1753390971269,0.03,188.99,188.98,43.08309549]
[1753390972155,0.03,188.99,188.98,53.95207936]
[1753390972351,0.03,188.99,188.98,60.12747936]
[1753390973554,10.26918614,189.0,188.99,0.28432314]
[1753390973862,10.26918614,189.0,188.99,11.56051412]
[1753390974263,10.26918614,189.0,188.99,6.26741863]
[1753390974767,10.26918614,189.0,188.99,43.36741863]
[1753390974948,10.26918614,189.0,188.99,48.66051412]
[1753390976752,10.26918614,189.0,188.99,11.56051412]
[1753390976952,10.26918614,189.0,188.99,48.66051412]
[1753390977876,10.26918614,189.0,188.99,53.95179937]
[1753390978082,0.03,189.03,188.99,53.95179937]
[1753390978281,0.03,189.03,189.02,5.29309549]
[1753390978581,0.03,189.03,189.02,42.39309549]
[1753390980084,0.03,189.03,189.02,37.1]
[1753390980265,0.75,189.03,188.95,0.7]
[1753390980588,0.5289606,189.02,188.97,5.29309549]
[1753390980877,0.72,189.01,188.98,42.39309549]
[1753390981085,0.72,189.0,188.98,42.39309549]
[1753390981258,0.5289606,189.02,188.98,42.39309549]
[1753390981462,0.72,188.99,188.98,37.1]
[1753390982181,6.01147203,188.99,188.98,37.1]
[1753390983787,22.796156,188.99,188.93,5.29309549]
[1753390983999,23.32674006,188.98,188.94,37.1]
[1753390984178,5.29184526,188.97,188.94,37.1]
[1753390984373,0.5289606,188.96,188.94,37.1]
[1753390984575,0.72,188.95,188.94,37.1]
[1753390984786,26.72,188.95,188.94,37.1]
[1753390985089,26.72,188.95,188.92,37.1]
[1753390985291,26.72,188.95,188.92,42.39309549]
[1753390986092,26.72,188.95,188.94,0.06]
[1753390986275,31.29240539,188.95,188.94,0.06]
[1753390986964,54.09018485,188.95,188.94,0.06]
[1753390988290,48.79708936,188.95,188.94,0.06]
[1753390989396,50.32961316,188.97,188.94,0.06]
[1753390989397,0.72,188.97,188.94,0.06]
[1753390989591,26.0,188.97,188.95,5.29309549]
[1753390990877,31.29206412,188.97,188.95,5.29309549]
[1753390994982,31.29206412,188.97,188.96,5.29309549]
[1753390996505,31.29206412,188.97,188.95,5.29309549]
[1753390996812,1.2489606,188.96,188.94,0.06]
[1753390996977,16.78468397,188.95,188.94,0.06]
[1753390997177,17.50468397,188.95,188.94,0.06]
[1753390998085,22.79708936,188.95,188.94,0.06]
[1753390999398,28.09018485,188.95,188.94,0.06]
[1753391000583,54.09018485,188.95,188.94,0.06]
[1753391001407,26.0,188.95,188.94,0.06]
[1753391001574,5.29210781,188.97,188.94,5.35309549]
[1753391001974,5.29210781,188.97,188.95,0.7]
[1753391002181,5.29210781,188.97,188.94,5.35309549]
[1753391002381,5.29210781,188.97,188.94,6.05309549]
[1753391003081,5.29210781,188.97,188.95,5.29309549]
[1753391003286,5.82057013,188.98,188.95,5.99309549]
[1753391003891,192.50468397,188.99,188.94,0.06]
[1753391003892,26.0,188.99,188.97,5.29309549]
[1753391004200,31.29130755,188.99,188.98,5.29309549]
[1753391005199,31.29130755,188.99,188.97,5.99309549]
[1753391005393,31.29130755,188.99,188.97,5.29309549]
[1753391005704,32.01130755,188.99,188.96,37.12]
[1753391005903,0.72,188.98,188.96,37.12]
[1753391006106,26.0,188.95,188.94,0.06]
[1753391006282,27.2489606,188.95,188.94,0.06]
[1753391006605,44.03364457,188.95,188.94,0.06]
[1753391006791,49.32674006,188.95,188.94,0.06]
[1753391008400,54.61914545,188.95,188.94,0.06]
[1753391009199,31.29240539,188.95,188.94,0.06]
[1753391009397,5.29240539,188.95,188.94,0.06]
[1753391009605,0.5289606,188.96,188.94,0.06]
[1753391009606,5.29216249,188.96,188.94,0.06]
[1753391009789,5.29216249,188.96,188.94,5.35309549]
[1753391010203,5.29216249,188.96,188.94,0.06]
[1753391011413,5.29184747,188.97,188.94,8.69245539]
[1753391011619,5.29184747,188.97,188.95,8.63245539]
[1753391011818,5.82080807,188.97,188.95,8.63245539]
[1753391012004,5.29184747,188.97,188.95,8.63245539]
[1753391012420,5.82080807,188.97,188.95,8.63245539]
[1753391012589,5.82080807,188.97,188.94,9.38245539]
[1753391015291,6.49080807,188.97,188.94,0.06]
[1753391015691,0.67,188.96,188.94,0.06]
[1753391017007,5.29212531,188.96,188.94,0.06]
[1753391017206,0.67,188.95,188.94,0.06]
[1753391017897,5.29212531,188.96,188.94,0.06]
[1753391018731,5.96212531,188.96,188.94,0.06]
[1753391021445,5.29212531,188.96,188.94,8.69245539]
[1753391022034,5.29212531,188.96,188.94,0.06]
[1753391024114,5.96212531,188.96,188.94,0.06]
[1753391025009,17.98364457,188.95,188.94,0.06]
[1753391025937,23.27604996,188.95,188.94,0.06]
[1753391030505,22.60604996,188.95,188.94,0.06]
[1753391031032,23.27604996,188.95,188.94,0.06]
[1753391033230,28.57607388,188.95,188.94,1e-08]
[1753391033437,30.09537388,188.95,188.94,1e-08]
[1753391033612,30.37969702,188.95,188.94,1e-08]
[1753391033815,67.19537388,188.95,188.94,1e-08]
[1753391034137,30.09537388,188.95,188.94,1e-08]
[1753391034340,67.19537388,188.95,188.94,1e-08]
[1753391035619,30.09537388,188.95,188.94,1e-08]
[1753391035824,67.21537388,188.95,188.94,1e-08]
[1753391037034,61.91534996,188.95,188.94,1e-08]
[1753391037332,67.21537388,188.95,188.94,1e-08]
[1753391038246,67.21537388,188.95,188.9,1e-08]
[1753391038247,16.78468397,188.91,188.9,1e-08]
[1753391038429,59.20470789,188.91,188.9,1e-08]
[1753391038632,59.86470789,188.91,188.9,1e-08]
[1753391039123,65.1582339,188.91,188.9,1e-08]
[1753391040437,22.07820998,188.91,188.9,1e-08]
[1753391040637,22.60717058,188.91,188.9,1e-08]
[1753391041346,17.31364457,188.91,188.9,0.71000001]
[1753391041521,14.75031349,188.95,188.9,6.01002393]
[1753391041522,0.5289606,188.94,188.9,6.01002393]
[1753391041721,5.29240539,188.95,188.92,5.30002392]
[1753391042048,5.29240539,188.95,188.93,0.71]
[1753391042221,5.82136599,188.95,188.93,0.71]
[1753391042620,16.78468397,188.91,188.9,1e-08]
[1753391042846,22.61366849,188.91,188.9,1e-08]
[1753391043144,23.27366849,188.91,188.9,1e-08]
[1753391044723,23.27366849,188.91,188.89,0.06]
[1753391044724,34.15154156,188.91,188.89,1e-08]
[1753391044930,59.86470789,188.9,188.89,1e-08]
[1753391045340,14.16838059,188.91,188.89,1e-08]
[1753391045341,8.58403353,188.91,188.89,1e-08]
[1753391045642,34.58403353,188.91,188.89,0.71000001]
[1753391046641,0.5289606,188.93,188.9,0.71]
[1753391046862,22.07801588,188.92,188.91,0.71]
[1753391047763,26.0,188.92,188.91,6.01002392]
[1753391047964,5.29298152,188.93,188.91,6.01002392]
[1753391048257,26.0,188.92,188.91,5.30002392]
[1753391048459,2.76048348,188.95,188.91,5.30002392]
[1753391048662,0.5289606,188.96,188.93,5.30002392]
[1753391048821,26.0,188.95,188.93,5.30002392]
[1753391049022,26.0,188.95,188.94,0.71]
[1753391049951,26.0,188.95,188.94,6.01002392]
[1753391052334,31.29240539,188.95,188.93,11.54502392]
[1753391052648,31.29240539,188.95,188.93,12.25502392]
[1753391053153,31.29240539,188.95,188.94,0.71]
[1753391053747,31.29240539,188.95,188.93,0.06]